bitfinex/quotes_SOLUSD_20250527
["timestamp","ask_amount","ask_price","bid_price","bid_amount"]
[1748337221015,3.97817684,175.96,175.93,71.42]
[1748337221746,3.97817684,175.96,175.93,83.78180727]
[1748337223142,2.84155489,175.96,175.93,83.78180727]
[1748337225756,2.84155489,175.96,175.93,71.42]
[1748337225961,2.84155489,175.96,175.93,83.78180727]
[1748337226146,0.14216157,175.97,175.93,83.78180727]
[1748337226349,0.14216157,175.97,175.94,12.36180727]
[1748337227736,0.14216157,175.97,175.93,83.78180727]
[1748337228361,1.13662195,175.96,175.93,83.78180727]
[1748337235965,1.13662195,175.96,175.93,79.32556183]
[1748337240275,3.97817684,175.96,175.93,71.42]
[1748337242280,11.88373867,175.96,175.93,37.32]
[1748337242481,8.0477234,175.94,175.93,37.32]
[1748337242786,0.14216157,175.93,175.88,37.3]
[1748337243077,8.0477234,175.89,175.88,37.3]
[1748337243759,9.1847977,175.89,175.88,37.3]
[1748337243967,13.64487304,175.89,175.88,37.3]
[1748337250170,0.14216157,175.88,175.84,0.20879966]
[1748337250363,22.17293033,175.89,175.84,0.20879966]
[1748337250364,12.50779874,175.85,175.84,0.20879966]
[1748337252183,13.64513169,175.85,175.84,0.20879966]
[1748337260078,1.27949452,175.85,175.84,0.20879966]
[1748337260286,13.64513169,175.85,175.84,0.20879966]
[1748337261994,0.14216157,175.84,175.82,37.26]
[1748337262296,12.36563717,175.83,175.82,37.26]
[1748337262890,12.50779874,175.83,175.82,37.26]
[1748337263075,13.64526106,175.83,175.82,37.26]
[1748337263690,0.14216157,175.82,175.78,34.1]
[1748337264192,0.14216157,175.79,175.78,34.1]
[1748337264380,0.14216157,175.79,175.77,71.36]
[1748337265600,1.13778586,175.78,175.77,71.36]
[1748337266477,1.13778586,175.78,175.77,37.26]
[1748337269707,13.6455846,175.78,175.77,37.26]
[1748337272408,1.27994743,175.78,175.77,37.26]
[1748337272598,1.13765642,175.8,175.77,49.62563717]
[1748337272798,177.82481604,175.84,175.79,12.36563717]
[1748337273102,28.72481604,175.84,175.78,54.31394886]
[1748337273302,0.14216157,175.83,175.8,12.36563717]
[1748337273491,28.72481604,175.84,175.81,12.36563717]
[1748337273688,0.14216157,175.83,175.81,12.36563717]
[1748337273882,1.27962389,175.83,175.81,12.36563717]
[1748337276191,1.27962389,175.83,175.78,54.31394886]
[1748337276396,1.27962389,175.83,175.8,12.36563717]
[1748337278712,25.88118363,175.84,175.81,12.36563717]
[1748337278916,27.01860388,175.84,175.83,12.36563717]
[1748337279215,1.13742025,175.84,175.83,83.68563717]
[1748337279399,1.27942985,175.86,175.83,83.68563717]
[1748337279804,12.36563717,175.85,175.83,71.32]
[1748337280124,12.50779874,175.85,175.83,71.32]
[1748337280413,0.14216157,175.85,175.83,71.32]
[1748337280611,12.50779874,175.84,175.83,71.32]
[1748337281517,13.64519637,175.84,175.83,71.32]
[1748337281817,13.64519637,175.84,175.83,34.12]
[1748337282914,0.14216157,175.83,175.81,37.2]
[1748337284940,1.13752701,175.82,175.81,37.2]
[1748337285444,1.13743618,175.84,175.81,49.56563717]
[1748337285729,1.13743618,175.84,175.83,12.36563717]
[1748337285944,1.13726828,175.86,175.83,46.48563717]
[1748337287023,1.27936518,175.87,175.84,12.36563717]
[1748337291145,1.27936518,175.87,175.83,34.12]
[1748337291368,1.27936518,175.87,175.84,12.36563717]
[1748337295246,1.13720361,175.87,175.85,12.36563717]
[1748337295568,0.14216157,175.88,175.86,12.36563717]
[1748337295969,0.14216157,175.88,175.87,34.1]
[1748337297565,1.27930052,175.88,175.87,34.1]
[1748337298567,1.13713895,175.88,175.87,34.1]
[1748337299257,5.66056378,175.95,175.87,83.64563717]
[1748337299258,1.13707071,175.9,175.87,83.64563717]
[1748337299455,1.13707071,175.9,175.89,12.36563717]
[1748337299651,0.14216157,175.91,175.89,12.36563717]
[1748337300846,1.1368804,175.92,175.89,12.36563717]
[1748337301051,3.9790814,175.92,175.88,12.36563717]
[1748337301366,0.14216157,175.91,175.88,12.36563717]
[1748337302061,0.14216157,175.89,175.87,83.64563717]
[1748337302257,0.14216157,175.89,175.87,71.28]
[1748337304774,1.13713895,175.88,175.87,71.28]
[1748337305459,1.27930052,175.88,175.87,71.28]
[1748337307269,1.13713895,175.88,175.87,71.28]
[1748337307573,1.13713895,175.88,175.87,83.64563717]
[1748337307754,0.14216157,175.91,175.87,83.64563717]
[1748337307955,1.27910659,175.91,175.88,12.36563717]
[1748337308479,1.13694502,175.91,175.88,12.36563717]
[1748337308649,1.13694502,175.91,175.89,12.36563717]
[1748337308843,1.13694502,175.91,175.9,46.46563717]
[1748337309048,1.27897734,175.93,175.9,46.46563717]
[1748337309255,1.13681577,175.93,175.9,46.46563717]
[1748337310695,1.13681577,175.93,175.9,34.1]
[1748337310873,3.97885521,175.93,175.9,34.1]
[1748337311384,12.50779874,175.91,175.9,34.1]
[1748337312288,0.14216157,175.91,175.9,34.1]
[1748337312596,1.27910659,175.91,175.9,34.1]
[1748337313166,4.12146916,175.91,175.89,34.1]
[1748337314000,4.12146916,175.91,175.87,49.54563717]
[1748337314299,4.12146916,175.91,175.89,34.1]
[1748337315676,4.12146916,175.91,175.87,71.28]
[1748337315677,12.50779874,175.9,175.87,71.28]
[1748337317084,0.14216157,175.9,175.87,71.28]
[1748337317414,1.1370743,175.89,175.87,71.28]
[1748337317803,1.1370743,175.89,175.87,83.64563717]
[1748337318999,1.1370743,175.89,175.87,71.28]
[1748337320316,1.1370743,175.89,175.87,37.18]
[1748337320490,1.1370743,175.89,175.87,71.28]
[1748337321225,1.1370743,175.89,175.87,37.18]
[1748337321399,13.64493769,175.88,175.87,37.18]
[1748337321600,16.48778508,175.88,175.82,37.14]
[1748337321827,0.14216157,175.83,175.82,37.14]
[1748337321983,12.50779874,175.83,175.82,37.14]
[1748337323117,0.14216157,175.83,175.82,37.14]
[1748337323306,12.50779874,175.83,175.82,37.14]
[1748337323511,13.64526106,175.83,175.82,37.14]
[1748337327989,1.27962389,175.83,175.82,37.14]
[1748337328392,13.64526106,175.83,175.82,37.14]
[1748337330290,1.27962389,175.83,175.82,37.14]
[1748337330601,13.64526106,175.83,175.82,37.14]
[1748337336251,22.17622846,175.83,175.78,115.98]
[1748337336394,0.14216157,175.8,175.78,115.98]
[1748337336817,12.50779874,175.8,175.78,115.98]
[1748337337116,1.27988271,175.79,175.78,115.98]
[1748337337521,1.27988271,175.79,175.78,81.86]
[1748337339400,1.27988271,175.79,175.77,71.28]
[1748337341803,1.27994743,175.78,175.77,71.28]
[1748337342002,1.27994743,175.78,175.77,37.16]
[1748337342217,13.6455846,175.78,175.77,37.16]
[1748337342520,16.49004927,175.78,175.73,34.12]
[1748337342703,0.14216157,175.75,175.73,34.12]
[1748337343123,0.14216157,175.75,175.72,37.12]
[1748337343322,0.14216157,175.77,175.74,12.36563717]
[1748337343526,0.14216157,175.77,175.76,12.36563717]
[1748337343770,0.14216157,175.77,175.76,34.12]
[1748337343904,1.28001217,175.77,175.76,34.12]
[1748337344405,1.1378506,175.77,175.76,34.12]
[1748337344604,1.28001217,175.77,175.76,34.12]
[1748337346123,13.64564934,175.77,175.76,34.12]
[1748337348238,1.28001217,175.77,175.74,34.12]
[1748337348602,1.28001217,175.77,175.74,46.48563717]
[1748337349037,1.28001217,175.77,175.74,34.12]
[1748337352637,1.28001217,175.77,175.72,37.12]
[1748337352638,12.36563717,175.76,175.72,37.12]
[1748337352822,12.36563717,175.76,175.73,34.12]
[1748337353021,16.49027584,175.77,175.73,34.12]
[1748337353435,12.50779874,175.76,175.73,34.12]
[1748337354936,1.13798008,175.75,175.73,34.12]
[1748337355445,1.13798008,175.75,175.72,37.12]
[1748337355622,1.13798008,175.75,175.73,34.12]
[1748337356641,1.13798008,175.75,175.72,37.12]
[1748337356841,1.13798008,175.75,175.73,34.12]
[1748337358244,12.50779874,175.76,175.73,34.12]
[1748337359844,1.13798008,175.75,175.73,34.12]
[1748337361438,1.70697012,175.75,175.73,34.12]
[1748337364553,14.07260729,175.75,175.72,37.12]
[1748337364847,12.50779874,175.74,175.72,37.12]
[1748337365225,12.50779874,175.73,175.72,37.12]
[1748337365856,13.07685353,175.73,175.72,37.12]
[1748337366951,0.71121636,175.73,175.72,37.12]
[1748337369061,13.07685353,175.73,175.72,37.12]
[1748337369725,40.49949052,175.73,175.67,37.08]
[1748337369926,0.14216157,175.72,175.68,34.12]
[1748337370148,12.50779874,175.72,175.68,34.12]
[1748337370556,0.14216157,175.7,175.68,34.12]
[1748337371258,0.56918435,175.69,175.68,34.12]
[1748337372973,0.71134592,175.69,175.68,34.12]
[1748337373823,0.71134592,175.69,175.67,37.08]
[1748337374060,13.07698309,175.69,175.67,37.08]
[1748337374247,0.14216157,175.68,175.67,37.08]
[1748337375446,0.71137832,175.68,175.67,37.08]
[1748337376931,13.07701549,175.68,175.67,37.08]
[1748337378262,14.50005738,175.68,175.63,34.14]
[1748337378461,12.36563717,175.65,175.62,37.08]
[1748337378767,0.56934639,175.64,175.62,71.22]
[1748337378973,0.56934639,175.64,175.62,37.08]
[1748337379673,12.93498356,175.64,175.62,37.08]
[1748337381969,12.50779874,175.63,175.62,37.08]
[1748337382573,0.14216157,175.63,175.57,6.2559]
[1748337382783,12.36563717,175.6,175.55,12.36563717]
[1748337383189,0.56950851,175.59,175.55,12.36563717]
[1748337383357,1.99327979,175.59,175.54,1.5507]
[1748337383554,1.99327979,175.59,175.55,83.58563717]
[1748337383780,1.99327979,175.59,175.56,12.36563717]
[1748337383781,0.56950851,175.59,175.56,12.36563717]
[1748337384380,0.56950851,175.59,175.58,12.36563717]
[1748337385057,0.14216157,175.61,175.55,71.22]
[1748337385266,12.50779874,175.61,175.56,12.36563717]
[1748337385453,12.50779874,175.61,175.55,71.22]
[1748337385654,0.14216157,175.59,175.55,37.08]
[1748337385965,0.14216157,175.59,175.56,34.14]
[1748337386765,0.14216157,175.59,175.56,46.50563717]
[1748337387380,0.56954094,175.58,175.56,46.50563717]
[1748337387780,0.14216157,175.57,175.55,37.08]
[1748337387987,12.50779874,175.56,175.55,37.08]
[1748337388354,0.14216157,175.56,175.55,37.08]
[1748337388679,12.50779874,175.56,175.55,37.08]
[1748337389384,0.71179984,175.55,175.52,0.02966474]
[1748337389695,13.07743701,175.55,175.52,0.02966474]
[1748337389855,0.71179984,175.55,175.52,0.02966474]
[1748337390058,13.07743701,175.55,175.52,0.02966474]
[1748337392256,0.71179984,175.55,175.52,0.02966474]
[1748337392458,13.07743701,175.55,175.52,0.02966474]
[1748337393180,0.14216157,175.53,175.52,0.02966474]
[1748337393359,12.50779874,175.53,175.52,0.02966474]
[1748337394564,13.07750192,175.53,175.52,0.02966474]
[1748337395869,0.71186475,175.53,175.52,0.02966474]
[1748337396059,13.07750192,175.53,175.52,0.02966474]
[1748337396986,0.56970318,175.53,175.52,0.02966474]
[1748337397372,0.56963827,175.55,175.52,0.02966474]
[1748337397790,0.56963827,175.55,175.52,12.39530191]
[1748337398890,1.99369944,175.56,175.52,12.39530191]
[1748337399571,14.35933661,175.56,175.52,0.02966474]
[1748337399956,1.99369944,175.56,175.52,0.02966474]
[1748337400360,1.99369944,175.56,175.52,12.39530191]
[1748337401888,1.99369944,175.56,175.52,0.02966474]
[1748337402072,1.99369944,175.56,175.52,12.39530191]
[1748337402990,0.56960583,175.56,175.53,12.36563717]
[1748337403169,0.56960583,175.56,175.54,12.36563717]
[1748337403489,0.56960583,175.56,175.55,12.36563717]
[1748337404475,0.56954094,175.58,175.55,12.36563717]
[1748337404687,0.56944365,175.61,175.57,12.36563717]
[1748337404989,0.56944365,175.61,175.6,12.36563717]
[1748337405186,0.56941122,175.62,175.6,12.36563717]
[1748337405492,0.56941122,175.62,175.59,12.36563717]
[1748337408992,0.56941122,175.62,175.61,12.36563717]
[1748337409887,2.13476048,175.65,175.61,12.36563717]
[1748337411316,0.56931397,175.65,175.63,12.36563717]
[1748337411666,14.5001708,175.67,175.62,71.24]
[1748337411883,14.5001708,175.67,175.62,83.60563717]
[1748337412295,14.5001708,175.67,175.62,71.24]
[1748337412595,0.14216157,175.65,175.62,37.08]
[1748337414094,0.56934639,175.64,175.62,37.08]
[1748337415500,0.56934639,175.64,175.62,49.44563717]
[1748337416992,0.56934639,175.64,175.62,37.08]
[1748337418004,0.56934639,175.64,175.58,71.22]
[1748337418005,12.50779874,175.63,175.58,71.22]
[1748337418301,0.14216157,175.61,175.58,71.22]
[1748337419608,12.50779874,175.61,175.58,71.22]
[1748337419786,0.56947608,175.6,175.58,37.06]
[1748337420178,0.14216157,175.59,175.58,37.06]
[1748337420590,12.50779874,175.59,175.58,37.06]
[1748337420904,12.93511325,175.6,175.58,37.06]
[1748337421079,0.56947608,175.6,175.58,49.42563717]
[1748337421998,0.71160522,175.61,175.58,49.42563717]
[1748337422199,0.71160522,175.61,175.58,83.58563717]
[1748337422902,0.56944365,175.61,175.59,12.36563717]
[1748337423485,12.50779874,175.6,175.58,37.06]
[1748337423831,0.14216157,175.59,175.58,37.06]
[1748337424122,0.71167008,175.59,175.58,37.06]
[1748337424278,0.56950851,175.59,175.58,37.06]
[1748337428507,12.93514568,175.59,175.58,37.06]
[1748337428713,13.07730725,175.59,175.58,37.06]
[1748337429219,6.71996827,175.59,175.58,37.06]
[1748337430929,0.14216157,175.59,175.58,37.06]
[1748337431102,13.07730725,175.59,175.58,37.06]
[1748337432829,0.71167008,175.59,175.58,37.06]
[1748337434434,2.13544136,175.59,175.55,12.36563717]
[1748337434929,14.50107853,175.59,175.54,49.40563717]
[1748337435309,2.13544136,175.59,175.54,49.40563717]
[1748337435730,14.50107853,175.59,175.54,49.40563717]
[1748337436030,2.13544136,175.59,175.55,12.36563717]
[1748337436245,2.13544136,175.59,175.56,12.36563717]
[1748337436534,2.13544136,175.59,175.55,12.36563717]
[1748337436927,0.56950851,175.59,175.57,12.36563717]
[1748337437243,0.56950851,175.59,175.58,12.36563717]
[1748337438112,1.99300994,175.62,175.58,12.36563717]
[1748337440634,14.35864711,175.62,175.57,46.52563717]
[1748337440821,12.50779874,175.61,175.57,34.16]
[1748337441637,12.50779874,175.61,175.56,12.36563717]
[1748337441834,12.50779874,175.61,175.56,46.52563717]
[1748337442235,0.56947608,175.6,175.59,12.36563717]
[1748337442644,0.56941122,175.62,175.59,12.36563717]
[1748337442835,0.56941122,175.62,175.6,83.56563717]
[1748337443854,0.56941122,175.62,175.61,12.36563717]
[1748337444327,0.56931397,175.65,175.61,12.36563717]
[1748337444636,0.56931397,175.65,175.62,12.36563717]
[1748337445426,1.99251596,175.66,175.62,12.36563717]
[1748337447343,0.56928156,175.66,175.65,12.36563717]
[1748337447517,0.56924916,175.67,175.65,46.52563717]
[1748337447836,0.56924916,175.67,175.66,37.04]
[1748337449647,0.56921675,175.68,175.66,37.04]
[1748337450842,0.14216157,175.67,175.66,37.04]
[1748337452954,0.71141073,175.67,175.66,37.04]
[1748337454554,39.0770479,175.67,175.66,37.04]
[1748337454946,40.5001708,175.67,175.61,49.38563717]
[1748337455256,38.36563717,175.66,175.61,49.38563717]
[1748337455860,0.14216157,175.65,175.61,37.02]
[1748337456040,12.36563717,175.64,175.61,37.02]
[1748337456376,12.50779874,175.62,175.61,37.02]
[1748337456732,13.07720996,175.62,175.61,37.02]
[1748337457259,14.50073803,175.62,175.56,37.02]
[1748337457561,12.36563717,175.6,175.56,37.02]
[1748337458751,0.56950851,175.59,175.56,37.02]
[1748337460768,12.36563717,175.58,175.56,37.02]
[1748337460942,12.36563717,175.57,175.56,37.02]
[1748337461270,12.50779874,175.57,175.56,37.02]
[1748337461846,0.14216157,175.56,175.52,0.02966474]
[1748337462049,12.50779874,175.53,175.52,0.02966474]
[1748337463563,0.56963827,175.55,175.52,0.02966474]
[1748337463762,0.14216157,175.54,175.52,0.02966474]
[1748337463943,0.56970318,175.53,175.52,0.02966474]
[1748337466646,26.56970318,175.53,175.52,0.02966474]
[1748337466845,0.56970318,175.53,175.52,0.02966474]
[1748337467566,0.56967733,175.54,175.52,12.39530191]
[1748337468347,1.99369854,175.56,175.52,12.39530191]
[1748337472375,0.56960583,175.56,175.52,12.39530191]
[1748337472566,0.56960583,175.56,175.53,12.36563717]
[1748337472777,0.56960583,175.56,175.55,12.36563717]
[1748337473478,1.99331569,175.59,175.55,12.36563717]
[1748337473881,14.35895286,175.59,175.55,12.36563717]
[1748337474760,1.99331569,175.59,175.55,12.36563717]
[1748337475076,1.99331569,175.59,175.56,12.36563717]
[1748337475378,0.56950851,175.59,175.57,49.38563717]
[1748337475967,0.56950851,175.59,175.57,37.02]
[1748337476343,12.93514568,175.59,175.57,37.02]
[1748337476769,12.93514568,175.59,175.57,36.99383771]
[1748337477280,0.14216157,175.58,175.57,36.99383771]
[1748337477457,12.50779874,175.58,175.57,36.99383771]
[1748337478663,13.07733968,175.58,175.57,36.99383771]
[1748337480456,0.56954094,175.58,175.57,36.99383771]
[1748337480883,0.56954094,175.58,175.57,49.35947488]
[1748337481878,0.56944365,175.61,175.57,49.35947488]
[1748337483179,0.56944365,175.61,175.58,12.36563717]
[1748337483886,1.99299471,175.62,175.58,12.36563717]
[1748337484080,0.56941122,175.62,175.59,12.36563717]
[1748337484378,12.93504839,175.62,175.57,36.99383771]
[1748337484577,12.93504839,175.62,175.57,49.35947488]
[1748337484769,14.35857646,175.62,175.57,49.35947488]
[1748337486888,1.99293929,175.62,175.57,49.35947488]
[1748337487092,14.35857646,175.62,175.57,49.35947488]
[1748337493595,1.99293929,175.62,175.58,12.36563717]
[1748337493991,0.56941122,175.62,175.59,12.36563717]
[1748337494185,0.56934639,175.64,175.61,12.36563717]
[1748337494390,0.56934639,175.64,175.62,12.36563717]
[1748337494599,0.56934639,175.64,175.63,36.98]
[1748337495877,1.42332973,175.65,175.63,36.98]
[1748337495878,1.9926437,175.65,175.63,36.98]
[1748337496393,0.56931397,175.65,175.63,36.98]
[1748337498926,14.35812264,175.66,175.63,36.98]
[1748337500906,12.93498356,175.64,175.63,36.98]
[1748337501207,13.07714513,175.64,175.63,36.98]
[1748337501790,0.71150796,175.64,175.63,36.98]
[1748337502193,0.56934639,175.64,175.63,36.98]
[1748337507726,0.14216157,175.63,175.59,36.98]
[1748337507912,12.36563717,175.62,175.59,36.98]
[1748337508113,12.50779874,175.63,175.59,36.98]
[1748337508512,12.36563717,175.61,175.59,36.98]
[1748337508721,0.14216157,175.62,175.59,36.98]
[1748337508971,12.36563717,175.6,175.59,36.98]
[1748337509709,13.07727482,175.6,175.59,36.98]
[1748337509924,0.56947608,175.6,175.59,36.98]
[1748337512698,12.93511325,175.6,175.59,36.98]
[1748337514350,0.56947608,175.6,175.59,36.98]
[1748337514519,0.56944365,175.61,175.59,36.98]
[1748337515613,12.93508082,175.61,175.59,36.98]
[1748337517243,12.36563717,175.6,175.59,36.98]
[1748337518428,0.56947608,175.6,175.59,36.98]
[1748337520012,12.93511325,175.6,175.59,36.98]
[1748337520579,0.71163765,175.6,175.59,36.98]
[1748337520792,13.07727482,175.6,175.59,36.98]
[1748337521587,0.71163765,175.6,175.59,36.98]
[1748337521750,13.07727482,175.6,175.59,36.98]
[1748337525882,0.71163765,175.6,175.59,36.98]
[1748337526095,13.07727482,175.6,175.59,36.98]
[1748337526674,0.71163765,175.6,175.59,36.98]
[1748337527483,13.07727482,175.6,175.59,36.98]
[1748337527845,0.14216157,175.59,175.54,71.12]
[1748337528065,12.36563717,175.57,175.54,71.12]
[1748337528267,0.56960583,175.56,175.54,36.96]
[1748337530295,13.07743701,175.55,175.54,36.96]
[1748337530573,0.71179984,175.55,175.54,36.96]
[1748337532155,0.56963827,175.55,175.54,36.96]
[1748337533079,0.14216157,175.57,175.54,49.32563717]
[1748337533080,0.56957338,175.57,175.54,49.32563717]
[1748337533660,0.56957338,175.57,175.54,36.96]
[1748337534581,1.99350685,175.57,175.54,36.96]
[1748337535083,14.35914402,175.57,175.54,36.96]
[1748337537380,12.50779874,175.55,175.54,36.96]
[1748337537569,12.50779874,175.55,175.52,0.02966474]
[1748337537774,12.50779874,175.53,175.52,0.02966474]
[1748337538592,13.07750192,175.53,175.52,0.02966474]
[1748337539030,0.71186475,175.53,175.52,0.02966474]
[1748337540785,0.56963827,175.55,175.52,0.02966474]
[1748337540993,0.56963827,175.55,175.52,12.39530191]
[1748337541990,0.56963827,175.55,175.52,0.02966474]
[1748337542191,12.93527544,175.55,175.52,0.02966474]
[1748337542401,14.35937113,175.55,175.52,0.02966474]
[1748337542794,0.56970318,175.53,175.52,0.02966474]
[1748337548315,1.99373396,175.55,175.52,0.02966474]
[1748337549516,12.36563717,175.54,175.52,0.02966474]
[1748337550317,0.56970318,175.53,175.52,0.02966474]
[1748337551389,13.07750192,175.53,175.52,0.02966474]
[1748337551916,0.56970318,175.53,175.52,0.02966474]
[1748337552415,0.56967073,175.54,175.52,0.02966474]
[1748337552616,0.56967073,175.54,175.52,46.55530191]
[1748337552803,0.56967073,175.54,175.52,34.18966474]
[1748337553490,12.9353079,175.54,175.52,34.18966474]
[1748337553993,12.9353079,175.54,175.52,0.02966474]
[1748337558597,12.50779874,175.53,175.52,0.02966474]
[1748337560206,13.07750192,175.53,175.52,0.02966474]
[1748337561323,0.56970318,175.53,175.52,0.02966474]
[1748337562090,0.56967073,175.54,175.52,0.02966474]
[1748337567621,12.9353079,175.54,175.52,0.02966474]
[1748337567805,0.56967073,175.54,175.52,0.02966474]
[1748337569130,12.9353079,175.54,175.52,0.02966474]
[1748337570017,12.36563717,175.53,175.52,0.02966474]
[1748337571033,12.9353079,175.54,175.52,0.02966474]
[1748337571610,0.71186475,175.53,175.52,0.02966474]
[1748337571806,13.07750192,175.53,175.52,0.02966474]
[1748337572313,0.71186475,175.53,175.52,0.02966474]
[1748337572610,13.07750192,175.53,175.52,0.02966474]
[1748337579041,0.71186475,175.53,175.52,0.02966474]
[1748337579240,16.34678958,175.53,175.52,0.02966474]
[1748337580341,13.07750192,175.53,175.52,0.02966474]
[1748337581332,0.71186475,175.53,175.52,0.02966474]
[1748337581629,13.07750192,175.53,175.52,0.02966474]
[1748337582028,16.34678958,175.53,175.52,0.02966474]
[1748337583228,3.98115241,175.53,175.52,0.02966474]
[1748337584246,0.71186475,175.53,175.52,0.02966474]
[1748337586149,13.07750192,175.53,175.52,0.02966474]
[1748337586731,3.83899084,175.53,175.52,0.02966474]
[1748337586938,3.98115241,175.53,175.52,0.02966474]
[1748337588629,16.34678958,175.53,175.52,0.02966474]
[1748337589135,13.07750192,175.53,175.52,0.02966474]
[1748337589837,16.34678958,175.53,175.52,0.02966474]
[1748337590033,3.98115241,175.53,175.52,0.02966474]
[1748337590245,16.34678958,175.53,175.52,0.02966474]
[1748337594159,29.98115241,175.53,175.52,0.02966474]
[1748337594333,42.34678958,175.53,175.52,0.02966474]
[1748337599667,29.98115241,175.53,175.52,0.02966474]
[1748337599839,42.34678958,175.53,175.52,0.02966474]
[1748337601971,29.98115241,175.53,175.52,0.02966474]
[1748337602139,42.34678958,175.53,175.52,0.02966474]
[1748337604761,60.99643844,175.53,175.52,0.02966474]
[1748337604959,26.0,175.49,175.44,36.92]
[1748337605152,12.50779874,175.45,175.44,36.92]
[1748337605356,0.14216157,175.44,175.39,36.92]
[1748337605668,0.14216157,175.42,175.39,71.1]
[1748337606250,0.57009292,175.41,175.39,71.1]
[1748337606958,0.57009292,175.41,175.39,36.92]
[1748337610654,0.57009292,175.41,175.39,49.28563717]
[1748337610866,0.57002793,175.43,175.4,12.36563717]
[1748337611048,0.57002793,175.43,175.41,12.36563717]
[1748337611873,13.07776169,175.45,175.41,12.36563717]
[1748337612362,13.07776169,175.45,175.4,12.36563717]
[1748337612743,14.50266907,175.45,175.39,36.92]
[1748337612959,14.50266907,175.45,175.4,12.36563717]
[1748337613168,14.50266907,175.45,175.39,36.92]
[1748337613369,14.50266907,175.45,175.4,12.36563717]
[1748337616372,0.57002793,175.43,175.39,36.92]
[1748337616564,0.57002793,175.43,175.39,49.28563717]
[1748337616763,0.56989798,175.47,175.42,12.36563717]
[1748337616960,0.56989798,175.47,175.44,12.36563717]
[1748337617267,0.56989798,175.47,175.43,46.54563717]
[1748337618277,14.36028012,175.47,175.43,34.18]
[1748337620453,1.99464295,175.47,175.43,46.54563717]
[1748337620861,1.99464295,175.47,175.43,34.18]
[1748337621175,1.99464295,175.47,175.43,46.54563717]
[1748337622671,0.56989798,175.47,175.43,46.54563717]
[1748337623871,0.56989798,175.47,175.46,12.36563717]
[1748337624565,0.56989798,175.47,175.45,49.26563717]
[1748337624866,0.56983303,175.49,175.46,34.18]
[1748337625251,12.9354702,175.49,175.46,34.18]
[1748337625455,12.36563717,175.48,175.46,34.18]
[1748337626872,0.56989798,175.47,175.46,34.18]
[1748337627171,13.07769672,175.47,175.45,36.9]
[1748337627578,12.93553515,175.47,175.45,36.9]
[1748337628577,12.93556763,175.46,175.45,36.9]
[1748337629275,13.0777292,175.46,175.45,36.9]
[1748337630177,0.71209203,175.46,175.45,36.9]
[1748337630355,13.0777292,175.46,175.45,36.9]
[1748337631480,0.71209203,175.46,175.45,36.9]
[1748337631784,13.0777292,175.46,175.45,36.9]
[1748337633180,0.56993046,175.46,175.45,36.9]
[1748337633383,0.56993046,175.46,175.42,49.26563717]
[1748337636083,12.36563717,175.46,175.42,36.9]
[1748337637084,0.56996295,175.45,175.42,36.9]
[1748337639988,7.9520805,175.46,175.42,36.9]
[1748337641399,0.56996295,175.45,175.42,36.9]
[1748337641698,7.9520805,175.44,175.42,36.9]
[1748337642671,0.14216157,175.44,175.42,36.9]
[1748337642988,1.99487033,175.45,175.42,36.9]
[1748337643995,14.42108375,175.45,175.42,36.9]
[1748337646495,1.99487033,175.45,175.42,71.08]
[1748337647293,0.56995327,175.46,175.44,12.42621342]
[1748337647994,1.99458614,175.48,175.44,12.42621342]
[1748337648996,1.99458614,175.48,175.42,77.7431]
[1748337649195,1.99458614,175.48,175.44,12.42621342]
[1748337657413,1.99458614,175.48,175.42,77.7431]
[1748337657590,1.99458614,175.48,175.44,12.42621342]
[1748337658121,0.56986551,175.48,175.46,12.42621342]
[1748337658402,0.56980056,175.5,175.47,12.42621342]
[1748337658606,0.56980056,175.5,175.48,49.28621342]
[1748337658915,0.56980056,175.5,175.48,36.86]
[1748337659484,12.56837499,175.49,175.48,36.86]
[1748337659783,0.14216157,175.49,175.48,36.86]
[1748337661709,0.7119946,175.49,175.48,36.86]
[1748337663106,0.56983303,175.49,175.48,36.86]
[1748337663916,0.56980056,175.5,175.48,36.86]
[1748337664217,0.56980056,175.5,175.48,44.80742515]
[1748337665814,0.56980056,175.5,175.48,36.86]
[1748337665986,0.56980056,175.5,175.48,71.04]
[1748337666189,0.56980056,175.5,175.48,78.98742515]
[1748337668295,0.5697681,175.51,175.49,7.94742515]
[1748337668821,0.5697681,175.51,175.48,78.98742515]